Cogmind - Beta 13 @@@ ROGUE MODE // 2024.04.26 @ 10:24:25 Player: SovietPaperclip Result: Self-destructed Performance ------------- Evolutions (1) 500 Regions Visited (2) 400 Robots Destroyed (17) 85 Value Destroyed (390) 390 Prototype IDs (0) 0 Alien Tech Used (0) 0 Bonus (0) 0 TOTAL SCORE: 1375 Bonus ------- None Cogmind --------- Core Integrity 277/400 Matter 283/300 Energy 125/125 System Corruption 0% Temperature Cool (0) Movement Rolling (115) Ox1 Location -9/Materials Parts ------- > --- POWER (1) -------- Light Ion Engine > --- PROPULSION (3) --- Compact Wheel Compact Wheel Compact Wheel > --- UTILITY (3) ------ Huge Storage Unit > --- WEAPON (2) ------- Assault Rifle Assault Rifle > --- INVENTORY (25) --- Light Treads Light Treads Light Treads Improved Heat Sink Large Matter Pod (118) Heavy Assault Rifle Autogun Shotgun Grenade Launcher Peak State ------------ > --- POWER ------------ Light Ion Engine > --- PROPULSION ------- Compact Wheel Compact Wheel Compact Wheel > --- UTILITY ---------- Huge Storage Unit > --- WEAPON ----------- Assault Rifle Light Assault Rifle > --- INVENTORY -------- Light Treads Light Treads Compact Wheel Improved Heat Sink Large Matter Pod Shotgun Grenade Launcher [Rating: 8] Favorites ----------- Power Ion Engine Engine Ion Engine Propulsion Light Treads Treads Light Treads Wheel Compact Wheel Utility Huge Storage Unit Storage Huge Storage Unit Weapon Assault Rifle Ballistic Gun Assault Rifle Launcher Grenade Launcher Build | -11 -10 -9 ------- Run | Yrd Mat Mat Slots Evolved 2 | . . 2 Power . | . . . Propulsion 1 | . . 1 Utility 1 | . . 1 Weapon . | . . . Parts Attached 17 | 6 3 8 Power 2 | 1 . 1 Engine 2 | 1 . 1 Core . | . . . Reactor . | . . . Propulsion 6 | 2 . 4 Treads 2 | 2 . . Leg . | . . . Wheel 4 | . . 4 Hover . | . . . Flight . | . . . Utility 2 | 1 1 . Device . | . . . Storage 2 | 1 1 . Processor . | . . . Hackware . | . . . Protection . | . . . Artifact . | . . . Weapon 7 | 2 2 3 Energy Gun . | . . . Energy Cannon . | . . . Ballistic Gun 5 | 2 1 2 Ballistic Cannon . | . . . Launcher 2 | . 1 1 Special Weapon . | . . . Impact Weapon . | . . . Slashing Weapon . | . . . Piercing Weapon . | . . . Special Melee Weapon . | . . . Unidentified Prototypes . | . . . Parts Lost 2 | . . 2 Power 1 | . . 1 Propulsion 1 | . . 1 Utility . | . . . Weapon . | . . . Highest Loss Streak 1 | . . 1 To Critical Strikes . | . . . Average Slot Usage (%) 77 | . 85 70 Engine 12 | . 14 10 Treads 19 | . 28 11 Wheel 8 | . . 15 Storage 12 | . 14 11 Ballistic Gun 24 | . 28 21 Naked Turns . | . . . Heaviest Build 88 | 13 88 88 Greatest Support 48 | 40 40 48 Greatest Overweight (x) 2 | 2 2 2 Average Overweight (x) . | . . 1 Largest Inventory Capacity 25 | 8 25 25 Average Capacity 19 | 7 15 25 Most Carried 9 | 1 5 9 Average Carried 4 | . 3 5 Final Capacity 25 | 8 25 25 Final Carried 9 | 1 5 9 Class Distribution -------------------- 100% | Mutant Dominant Class ---------------- Mutant | -10/Materials Mutant | -9/Materials Resources | -11 -10 -9 ----------- Run | Yrd Mat Mat Matter Collected 683 | 237 58 388 Remotely . | . . . Salvage Created 505 | . 66 439 Parts 37 | . 6 31 Haulers Intercepted 1 | . 1 . Recyclers Shooed 2 | . 2 . Parts Field Recycled . | . . . Retrieved Matter . | . . . Parts Self-Destructed . | . . . Prevented . | . . . Kills | -11 -10 -9 ------- Run | Yrd Mat Mat Combat Hostiles Destroyed 14 | . 3 11 Guns 7 | . . 7 AOE 7 | . 3 4 Classes Destroyed 6 | . 2 4 Hauler 1 | . 1 . Recycler 1 | . . 1 Mechanic 1 | . . 1 Swarmer 6 | . 3 3 Grunt 7 | . . 7 Sentry 1 | . . 1 Best Kill Streak 5 | . 3 5 Combat Bots Only 4 | . 3 4 Max Kills in Single Turn 3 | . 3 2 Gunslinging . | . . . Exploded 3 | . 3 2 Melee . | . . . Uniques/NPCs Destroyed . | . . . Combat | -11 -10 -9 -------- Run | Yrd Mat Mat Hostile Shots Fired 58 | . 7 51 Missed 20 | . 4 16 Damage Taken 446 | . 24 422 Core 139 | . 16 123 Absorbed by Shields . | . . . Core Remaining (%) 96 | 100 93 . Volleys Fired 44 | . 10 34 Largest 2 | . 2 2 Hottest 50 | . 50 50 Shots Fired 88 | . 20 68 Gun 84 | . 19 65 Cannon . | . . . Launcher 4 | . 1 3 Special . | . . . Kinetic 84 | . 19 65 Thermal . | . . . Explosive 4 | . 1 3 Electromagnetic . | . . . Robot Hit Streak 7 | . 3 7 Robot Miss Streak 3 | . 3 2 Penetration Max . | . . . Secondary Targets 1 | . . 1 Max Gunslinging Chain 1 | . . 1 Shots Hit Robots 55 | . 9 46 Core Hits 28 | . 5 23 Critical Kills 1 | . . 1 Critical Parts Destroyed . | . . . Critical Strikes 1 | . . 1 Destroy 1 | . . 1 Melee Attacks . | . . . Impact . | . . . Slashing . | . . . Piercing . | . . . Sneak Attacks . | . . . Combat Hostiles . | . . . Follow-up Attacks . | . . . Damage Inflicted 1027 | . 225 802 Guns 557 | . 80 477 Cannons . | . . . Explosions 470 | . 145 325 Melee . | . . . Ramming . | . . . Kinetic 557 | . 80 477 Thermal . | . . . Explosive 470 | . 145 325 Electromagnetic . | . . . Impact . | . . . Slashing . | . . . Piercing . | . . . Highest Corruption . | . . . Average Corruption . | . . . Corruption Purged . | . . . Corruption Blocked . | . . . Overload Shots . | . . . Overflow Damage 66 | . 20 46 Projectiles . | . . . Explosions 66 | . 20 46 Melee . | . . . Knockbacks . | . . . Impact . | . . . Kinetic . | . . . Secondary . | . . . Self-Inflicted Damage . | . . . Shots . | . . . Rammed . | . . . Targets Rammed . | . . . Kicked . | . . . Crushed . | . . . Highest Temperature 27 | . 10 27 Average Temperature 5 | . 7 5 Received Heat Transfer 234 | . . 234 Siege Activations . | . . . Robots Corrupted . | . . . Combat Hostiles . | . . . Parts Fried . | . . . Impact Corruptions . | . . . Robots Melted . | . . . Combat Hostiles . | . . . Parts Melted . | . . . Heat Transferred . | . . . Parts Sabotaged . | . . . Parts Stolen . | . . . Parts Stripped . | . . . Power Chain Reactions . | . . . Alert | -11 -10 -9 ------- Run | Yrd Mat Mat Peak Influence 342 | . 85 342 Initial 35 | . . 35 Average 81 | . 24 147 Maximum Alert Level 1 | . . 1 Low Security (%) 88 | 100 100 75 Level 1 11 | . . 24 Level 2 . | . . . Level 3 . | . . . Level 4 . | . . . Level 5 . | . . . High Security . | . . . Max Security . | . . . Squads Dispatched . | . . . Investigation . | . . . Extermination . | . . . Reinforcement . | . . . Assault . | . . . Garrison . | . . . Intercept . | . . . Searches Triggered . | . . . Construction Impeded . | . . . Haulers Reinforced . | . . . Active Scanning Responses . | . . . Cargo Convoy Interrupts . | . . . Stealth | -11 -10 -9 --------- Run | Yrd Mat Mat Distress Signals 2 | . . 2 Communications Jammed . | . . . Distress Signals . | . . . Times Spotted 18 | . 4 14 Peak Tracking Total 4 | . 3 4 Tactical Retreats 1 | . . 1 Traps | -11 -10 -9 ------- Run | Yrd Mat Mat Traps Triggered . | . . . Indirectly . | . . . Trap Hack Attempts . | . . . Triggered . | . . . Disarmed 4 | . . 4 Reprogrammed . | . . . Reused . | . . . Traps Extracted . | . . . Installed . | . . . Triggered . | . . . Machines | -11 -10 -9 ---------- Run | Yrd Mat Mat Machines Disabled . | . . . Max in Single Turn . | . . . Machines Repaired . | . . . Machines Dismantled . | . . . Machines Sabotaged . | . . . Overloaded Fab Kills . | . . . Hacking | -11 -10 -9 --------- Run | Yrd Mat Mat Machines Accessed 2 | . 1 1 Terminals 2 | . 1 1 Fabricators . | . . . Repair Stations . | . . . Recycling Units . | . . . Scanalyzers . | . . . Garrison Access . | . . . Total Hacks 2 | . 1 1 Successful 2 | . 1 1 Failed . | . . . Catastrophic . | . . . Database Lockouts . | . . . Manual . | . . . Terminals 2 | . 1 1 Fabricators . | . . . Repair Stations . | . . . Recycling Units . | . . . Scanalyzers . | . . . Garrison Access . | . . . Terminal Hacks 2 | . 1 1 Alert Level 1 | . 1 . Disarm Traps 1 | . . 1 Fabricator Hacks . | . . . Repair Station Hacks . | . . . Recycling Unit Hacks . | . . . Scanalyzer . | . . . Garrison Access Hacks . | . . . Unauthorized Hacks . | . . . Terminals . | . . . Fabricators . | . . . Repair Stations . | . . . Recycling Units . | . . . Scanalyzers . | . . . Garrison Access . | . . . Data Cores Recovered . | . . . Used . | . . . Hacking Detections 1 | . 1 . Full Trace Events . | . . . Feedback Events . | . . . Feedback Blocked . | . . . Robot Schematics Acquired . | . . . Robots Built . | . . . Authchips . | . . . Time . | . . . Total Robot Build Rating . | . . . Part Schematics Acquired . | . . . Parts Built . | . . . Authchips . | . . . Time . | . . . Total Part Build Rating . | . . . Parts Repaired . | . . . Time . | . . . Parts Recycled . | . . . Recycled Matter . | . . . Retrieved Matter . | . . . Retrieved Components . | . . . Parts Scanalyzed . | . . . Part Schematics Acquired . | . . . Parts Damaged . | . . . Bothacking | -11 -10 -9 ------------ Run | Yrd Mat Mat Used RIF Installer . | . . . Robots Hacked . | . . . Non-combat . | . . . Combat . | . . . Robot Hacks Applied . | . . . Relay Couplers Released . | . . . Fabnet Peak Effective % . | . . . Robots Rewired . | . . . Allies Hacked . | . . . Hacks Repelled . | . . . Allies | -11 -10 -9 -------- Run | Yrd Mat Mat Total Allies . | . . . Largest Group . | . . . Highest-Rated Group . | . . . Highest-Rated Ally . | . . . Total Orders . | . . . Ally Attacks . | . . . Total Damage . | . . . Kills . | . . . Allies Corrupted . | . . . Allies Melted . | . . . Intel | -11 -10 -9 ------- Run | Yrd Mat Mat Robot Analysis Total . | . . . Derelict Logs Recovered . | . . . Drone Launches . | . . . Drone Recoveries . | . . . Exploration | -11 -10 -9 ------------- Run | Yrd Mat Mat Turns Passed 682 | 67 285 330 Spaces Moved 264 | 40 120 104 Core 8 | 8 . . Treads 187 | 32 120 35 Legs . | . . . Wheels 69 | . . 69 Hover . | . . . Flight . | . . . Fastest Speed 50 | 50 160 115 Average Speed 189 | 145 208 183 Slowest Speed 320 | 160 320 320 Overloaded Moves . | . . . Propulsion Burnouts . | . . . Robots Hopped . | . . . Cave-ins Triggered . | . . . Exploration Rate (%) 17 | 5 28 19 Regions Visited 2 Branch Regions . Pre-discovered Areas . | . . . Known Exits Taken . | . . . Unknown Exits Taken 2 | 1 1 . Scrap Searched . | . . . Spaces Dug . | . . . Terrain Destroyed 21 | . 8 13 Melee . | . . . Projectile . | . . . AOE 21 | . 8 13 Terrain Rammed . | . . . Walls Destroyed . | . . . Machines Disabled . | . . . Actions | -11 -10 -9 --------- Run | Yrd Mat Mat Total 364 | 46 139 179 Wait 23 | . . 23 Move 262 | 39 119 104 Hop . | . . . Pick Up 13 | 1 5 7 Fast Attach 8 | 6 1 1 Attach 5 | . . 5 Detach 2 | . . 2 Swap 4 | . 2 2 Drop 3 | . 2 1 Fire 44 | . 10 34 Melee . | . . . Ram . | . . . Kick . | . . . Crush . | . . . Escape Stasis . | . . . Rewire . | . . . Trap . | . . . Miscellaneous . | . . . Route ------- -11/Scrapyard -10/Materials -9/Materials History --------- Turn | Location | Event 6 | -11/Scrapyard | Discovered new exit (range 16) 68 | -11/Scrapyard | Entered Materials 196 | -10/Materials | Discovered new exit (range 8) 318 | -10/Materials | Build established: Mutant 353 | -10/Materials | Entered another Materials area 353 | -9/Materials | Evolved 2 slots: Propulsion x1, Utility x1 683 | -9/Materials | Self-destructed Last Messages --------------- 00660_ Y-45 Defender destroyed. 00660_ Switching to secondary target: G-34 Mercenary. 00660_ K-01 Serf collects debris. 00663_ G-34 Mercenary destroyed. 00664_ K-01 Serf collects debris. 00666_ Acquired 60 matter. 00668_ K-01 Serf collects debris. 00668_ Acquired Hvy. Assault Rifle. 00669_ W-16 Scout sends out distress signal. 00669_ Connecting with Terminal... 00669_ Current location identified: Materials >>Traps(Disarm) Disarmed 4 Explosive Traps. 00669_ Connecting with Terminal... 00672_ Acquired Lgt. Treads. 00672_ K-01 Serf collects debris. 00673_ Acquired 33 matter. 00676_ K-01 Serf collects debris. 00680_ Acquired Autogun. Map ----- +----------------------------------------------------+ | "" # ?# ## #???# """"" #????????????????? | | "" #####+## ## #???# #????????????????? | | #??????###### #???# """"" #????????????????? | | ##?????????????# #???# """"" #????????????????? | | ???????????????# #???# """"" #????????????????? | | ???????????????# #???# #????????????????? | | ???????????????# #???#####+#############???????? | | ???????????????# #????# [ ? ???? | | ???????????????? ????## ?????? | | ???????????????????????# ?????? | | ???????????????????????## """" ""??????? | | ???????????????????????# ![[= """" ""??????? | | ??????????????????????## == """" """"????? | | ??????????????????????# # [== ????? | | ??????????????????????### [ ???? | | ???????????????????????## % ???? | | ???????????????????????## ** ???? | | ???????????????????????## ## #+### ###??????? | | ????????????? ????????## #### ?## #????????? | | ?????????????? ????### #### #?? ???????? | | ????????? ### *[ ## #???? ? ???????? | | ??????????????# k ## #??????????????? | | ????????????????# ##### T ## #??????????????? | | ??????????????????????# ! ## #??????????????? | | ??????????????????????# ## #??????????????? | | ??????????????????????###@#### #??????????????? | | ??????????????????????# # #??????????????? | | ??????????????????????# """ ######??????????????? | | ??????????????????????# """ #???????????????????? | | ??????????????????????# """ #???????????????????? | | ??????????????????????# #???????????????????? | | ??????????????????????#] #???????????????????? | | ??????????????????????########???????????????????? | | ?????????????????????????????????????????????????? | | ?????????????????????????????????????????????????? | | ?????????????????????????????????????????????????? | | ?????????????????????????????????????????????????? | | ?????????????????????????????????????????????????? | | ?????????????????????????????????????????????????? | | ?????????????????????????????????????????????????? | | ?????????????????????????????????????????????????? | | ?????????????????????????????????????????????????? | | ?????????????????????????????????????????????????? | | ?????????????????????????????????????????????????? | | ?????????????????????????????????????????????????? | | ?????????????????????????????????????????????????? | | ?????????????????????????????????????????????????? | | ?????????????????????????????????????????????????? | | ?????????????????????????????????????????????????? | | ?????????????????????????????????????????????????? | +----------------------------------------------------+ Best States ------------- Heat Dissipation 28 Energy Generation 10 Energy Capacity 250 Matter Stores 300 Matter Capacity 300 Sight Range 16 Terrain Scan Density 10 Evasion (%) 40 Recoil Reduction 2 Item Schematics ----------------- None Robot Schematics ------------------ None Fabricated ------------ Nothing Alien Tech Used ----------------- None Achievements -------------- None Challenges ------------ None Game ------ Seed TerrainStealthClaymores Manual? 0 Play Time 00:06:58 Cumulative 110.8 hours Start 2024.04.19 @ 11:59:21 End 2024.04.26 @ 10:24:25 Sessions 10 Manual Loads 0 Difficulty Rogue Special Mode None Game No. 135 Rogue 135 Adventurer 0 Explorer 0 Win Type - Total 1 Types 1/0/0/0/0/0/0/0/0 Lore% 48 Gallery% 52 Achievement% 49 Wizard Run 0 Options --------- Layout 1 ASCII 0 Keyboard 0 Movement Mouse Keybinds 0 Fullscreen 2 Font 32/Smallcaps Map View 50x40 Zoom Use 0% Tactical HUD 1 Map Filters NONE Filters NONE Steam 1 RUN: 3efb08e8-81e6-4f66-ac21-7153b7c981c2